Workbook

Sheet CENTRIFUGAL
A1: PUMP CALCULATION PART 1
S2: SYSTEM CHARACTERISTICS
B3: SINGLE STAGE CENTRIFUGAL PUMP CALCULATION | O3: Version | P3: 1.001 | Q3: 1997-11-01 | S3: Q | T3: Ptot | U3: Ltot | V3: Ftot | W3: Htot
B4: (Clean Water Use) | S4: =C34 -> 215 | T4: =C44-C38 -> 0.00 | U4: =C45+C39 -> -0.008 | V4: =C41+C47 -> 54.13 | W4: =T4+U4+V4 -> 54.12
B5: Static Suction Lift = Ls | F5: Pump Suction Diam = Ds
B6: Static Discharge Head = Ld | F6: Pump Discharge Diam = Dd | S6: 0 | T6: =$T$4 -> 0.00 | U6: =$U$4 -> -0.008 | V6: =$V$4/$S$4^2*S6^2 -> 0 | W6: =T6+U6+V6 -> -0.01
B7: Total Static Head Ltot = Ls + Ld | S7: =$S$4/8+S6 -> 26.875 | T7: 0.00 | U7: -0.008 | V7: 0.8457568807 | W7: 0.84
B8: Friction Head = Hfs and Hfd | S8: 53.75 | T8: 0.00 | U8: -0.008 | V8: 3.383027523 | W8: 3.38
B9: Inlet and Discharge Nozzle Losses = Hi and Ho | S9: 80.625 | T9: 0.00 | U9: -0.008 | V9: 7.611811927 | W9: 7.60
B10: Velocity Head = V2/2g [often included in pump curves] | S10: 107.5 | T10: 0.00 | U10: -0.008 | V10: 13.53211009 | W10: 13.52
B11: Pump Suction and Discharge Nozzle Elevations = Lns and Lnd | S11: 134.375 | T11: 0.00 | U11: -0.008 | V11: 21.14392202 | W11: 21.14
B12: Suction Pressure Head = Ps [if open tank = 0] | S12: 161.25 | T12: 0.00 | U12: -0.008 | V12: 30.44724771 | W12: 30.44
B13: Discharge Pressure Head = Pd [if open tank = 0] | S13: 188.125 | T13: 0.00 | U13: -0.008 | V13: 41.44208716 | W13: 41.43
S14: 215 | T14: 0.00 | U14: -0.008 | V14: 54.12844037 | W14: 54.12
S15: 241.875 | T15: 0.00 | U15: -0.008 | V15: 68.50630734 | W15: 68.50
S16: 268.75 | T16: 0.00 | U16: -0.008 | V16: 84.57568807 | W16: 84.57
S17: 295.625 | T17: 0.00 | U17: -0.008 | V17: 102.3365826 | W17: 102.33
S18: 322.5 | T18: 0.00 | U18: -0.008 | V18: 121.7889908 | W18: 121.78
H19: Pout = Pd + Ld + Hfd + Ho - Lnd = Hd - Vd2/2g - Lnd | S19: 349.375 | T19: 0.00 | U19: -0.008 | V19: 142.9329128 | W19: 142.92
S20: 376.25 | T20: 0.00 | U20: -0.008 | V20: 165.7683486 | W20: 165.76
S21: 403.125 | T21: 0.00 | U21: -0.008 | V21: 190.2952982 | W21: 190.29
G22: Pin = Ps - Ls - Hfs - Hi + Lns = - Hs - Vs2/2g + Lns | S22: 430 | T22: 0.00 | U22: -0.008 | V22: 216.5137615 | W22: 216.51
S24: =C34 -> 215 | W24: =I45 -> 55.53
F26: Total Dynamic Suction Lift | I26: Hs = Ls - Ps + Hfs + Hi - Vs2/2g | M26: Dynamic Suction Lift (req'd) | P26: Hs(r) = Ls - Ps + Hfs + Hi | S26: WATER VAPOUR PRESSURE
F27: Total Dynamic Discharge Head | I27: Hd = Ld + Pd + Hfd + Ho + Vd2/2g | M27: Dynamic Discharge Head (req'd) | P27: Hd(r) = Ld + Pd + Hfd + Ho | S27: degC | T27: kPa(abs)
F28: Total Dynamic Head | I28: Htot = Hd + Hs | M28: Dynamic Head (req'd) | P28: Htot(r) = Hd(r) + Hs(r) | S28: 0 | T28: 0.6
M29: NPSHa(req'd) | P29: NPSHa(r) = NPSHa - Vs2/2g | S29: 15 | T29: 1.7
C30: Closed Tank: | D30: NPSHa(abs) = Ps + Patm - Ls - Hfs - Hi + Vs2/2g - Pvap [where Pvap = Vapour Pressure(abs)] | M30: Provide this to pump vendor and use on pump curves | S30: 25 | T30: 3.2
C31: Open Tank: | D31: or = Pamb - Ls - Hfs - Hi + Vs2/2g - Pvap [NPSHa should exceed NPSHr by at least 0.5 m] | M31: where velocity head is included in vendors pump curves. | S31: 30 | T31: 4.25
S32: 40 | T32: 7.38
B33: SYSTEM PROPERTIES | H33: SYSTEM CHARACTERISTICS | N33: PUMP SELECTION (Nominal) | S33: 50 | T33: 12.5
B34: Q | C34: 215 | D34: l/sec | E34: =C34/1000 -> 0.2150 | F34: m3/sec | H34: Patm | I34: =K34/9.81/$C$35 -> 10.329 | J34: m | K34: 101.325 | L34: kPa(abs)
B35: SG | C35: 1 | D35: D | E35: =C35*1000 -> 1000 | F35: kg/m3 | H35: Pamb | I35: 9.980 | J35: m | K35: 97.900 | L35: kPa(abs) | N35: Pump Speed | P35: 1483 | Q35: rpm | S35: 120 | T35: 198.5
B36: Tfluid | E36: 16 | F36: oC | H36: Vs | I36: =K36^2/2/9.81 -> 0.978 | J36: m | K36: =$E$34/E42 -> 4.38 | L36: m/sec | S36: 140 | T36: 361.4
B37: Pvap | C37: =E37/$C$35/9.81 -> 0.19 | D37: m(abs) | E37: 1.9 | F37: kPa(abs) | H37: Pinlet | I37: =C38-C39-C41-C40+C43 -> -2.669 | J37: m | K37: =$C$35*9.81*I37 -> -26.180 | L37: kPa(g) | N37: Impeller Diam | P37: 0.449 | Q37: m
B38: Ps | C38: 0.00 | D38: m | E38: 0 | F38: kPa(g) | H38: Hs | I38: =C39-C38+C41+C40-I36 -> 1.991 | J38: m | K38: 19.531 | L38: kPa | N38: Pump Head | P38: =(PI()*P37*P35/60)^2/2/9.81 -> 61.95 | Q38: m
B39: Ls | C39: 0.930 | D39: m | E39: =$C$35*9.81*C39 -> 9.1 | F39: kPa | H39: Hs(r) | I39: =C39-C38+C41+C40 -> 2.969 | J39: m | K39: 29.123 | L39: kPa
B40: Hi | C40: =E40/$C$35/9.81 -> 0.000 | D40: m | E40: 0 | F40: kPa | H40: Vd | I40: =K40^2/2/9.81 -> 2.387 | J40: m | K40: =$E$34/E48 -> 6.84 | L40: m/sec | N40: Hydraulic Power | P40: =I45*E34*E35*9.81/1000 -> 117.12 | Q40: kW | S40: NOTES:
B41: Hfs | C41: 2.039 | D41: m | E41: 20 | F41: kPa | H41: Poutlet | I41: =C44+C45+C47+C46-C49 -> 51.452 | J41: m | K41: =$C$35*9.81*I41 -> 504.741 | L41: kPa(g) | N41: Pump Efficiency | P41: 83.8% | S41: For Hfs and Hfd try 50 kPa/100m
B42: Ds | C42: 0.250 | D42: m As | E42: =PI()*C42^2/4 -> 0.0491 | F42: m2 | H42: Hd | I42: =C45+C44+K40^2/2/9.81+C47+C46 -> 53.539 | J42: m | K42: 525.216 | L42: kPa | N42: Motor Power | P42: =P40/P41 -> 139.76 | Q42: kW
B43: Lns | C43: 0.3 | D43: m | E43: =$C$35*9.81*C43 -> 2.943 | F43: kPa | H43: Hd(r) | I43: =C45+C44+C47+C46 -> 51.152 | J43: m | K43: 501.798 | L43: kPa | S43: Select Ds and Dd for Vs and Vd around 3 m/sec
B44: Pd | C44: =E44/$C$35/9.81 -> 0.00 | D44: m | E44: 0 | F44: kPa(g) | N44: Specific Speed | P44: =P35*SQRT(C34)/(I45^0.75) -> 1069
B45: Ld | C45: -0.938 | D45: m | E45: =$C$35*9.81*C45 -> -9.20178 | F45: kPa | H45: Htot | I45: =I42+I38 -> 55.53 | J45: m | K45: =$C$35*9.81*I45 -> 544.75 | L45: kPa | N45: =IF(P44<500,"Warning: Low Specific Speed. Consider Multistage."," ") ->  | S45: For small pumps try 60% efficiency
B46: Ho | C46: =E46/$C$35/9.81 -> 0.000 | D46: m | E46: 0 | F46: kPa | H46: Htot(r) | I46: 54.12 | J46: m | K46: 530.92 | L46: kPa | N46: NPSHr | P46: 2 | Q46: m
B47: Hfd | C47: 52.090 | D47: m | E47: 511 | F47: kPa | N47: Normally approx. 3% Htot = | P47: =0.03*I45 -> 1.666 | Q47: m
B48: Dd | C48: 0.200 | D48: m Ad | E48: =PI()*C48^2/4 -> 0.0314 | F48: m2 | H48: NPSHa | I48: =IF(E38=0,I35-C39-C41-C40+I36-C37,C38+I34-C39-C41-C40+I36-C37) -> 7.79 | J48: m(abs) | K48: =$C$35*9.81*I48 -> 76.47 | L48: kPa(g) | N48: =IF(I49<P46,"Warning: NPSHr exceeds NPSHa"," ") -> 
B49: Lnd | C49: -0.3 | D49: m | E49: =$C$35*9.81*C49 -> -2.943 | F49: kPa | H49: NPSHa(r) | I49: =I48-I36 -> 6.82 | J49: m(abs) | K49: 66.88 | L49: kPa(g)
